bitfinex/quotes_ETHUSD_20251218
["timestamp","ask_amount","ask_price","bid_price","bid_amount"]
[1766072844611,4.7098,2972.4,2971.4,1.02138023]
[1766072844824,3.1344,2972.0,2970.5,7.91771748]
[1766072844985,0.557,2972.0,2970.8,2.9422]
[1766072845187,0.557,2972.0,2971.3,3.36550347]
[1766072845386,3.1344,2972.2,2971.2,3.36558009]
[1766072845602,1.5754,2972.4,2971.2,3.36558744]
[1766072845829,1.5754,2972.4,2971.1,8.47403857]
[1766072845986,1.5754,2972.4,2971.4,3.36541284]
[1766072846187,1.5754,2972.4,2971.3,3.36552664]
[1766072846416,4.7098,2972.4,2971.3,0.405504]
[1766072846638,1.5754,2972.3,2971.2,4.67737218]
[1766072846837,4.7098,2972.3,2971.3,0.001]
[1766072847054,4.7098,2972.3,2970.0,0.10157612]
[1766072847055,0.46438023,2972.2,2970.1,0.001]
[1766072847205,4.7098,2971.4,2970.1,0.001]
[1766072847412,0.557,2971.3,2970.1,0.001]
[1766072847608,3.1344,2970.8,2969.7,0.557]
[1766072847845,3.1344,2970.8,2969.8,3.36714473]
[1766072848047,4.7098,2970.7,2969.6,3.36738273]
[1766072848205,1.02798,2970.8,2969.3,7.29254375]
[1766072848405,1.5754,2970.6,2969.4,0.46438023]
[1766072848746,4.7098,2970.4,2969.3,0.557]
[1766072848909,1.5754,2970.1,2968.9,0.001]
[1766072849113,4.7098,2970.1,2968.9,0.001]
[1766072849408,4.709,2970.0,2969.0,3.36805133]
[1766072849735,4.709,2970.0,2968.9,0.001]
[1766072849736,1.5754,2970.2,2968.9,0.001]
[1766072850117,3.36689,2970.1,2968.9,0.001]
[1766072850323,1.5754,2969.9,2969.0,0.46438023]
[1766072850510,1.5754,2969.9,2968.9,3.36920204]
[1766072850511,1.5754,2969.9,2968.9,0.001]
[1766072850908,1.5754,2970.6,2969.2,2.9422]
[1766072851123,0.557,2970.5,2969.2,0.46438023]
[1766072851329,1.5754,2970.4,2969.2,0.46438023]
[1766072851654,1.5754,2971.0,2969.7,4.5513]
[1766072851812,2.24375825,2970.9,2969.7,5.00643]
[1766072852011,4.7098,2970.8,2969.7,0.45513]
[1766072852211,1.5754,2970.5,2969.6,3.36745689]
[1766072852411,2.1324,2971.0,2969.7,0.405504]
[1766072852759,0.557,2971.0,2969.9,4.5513]
[1766072852939,0.557,2971.0,2969.7,5.01568023]
[1766072853133,0.557,2971.0,2969.8,1.2307594]
[1766072853443,0.557,2971.0,2969.9,5.1083]
[1766072853648,1.5754,2971.4,2970.0,0.86988423]
[1766072853947,0.557,2971.7,2970.5,0.405504]
[1766072854156,1.42017169,2971.7,2970.5,0.58266882]
[1766072854365,1.42017169,2971.7,2970.6,3.3663233]
[1766072854512,4.7098,2971.6,2970.5,3.94910544]
[1766072854717,1.5754,2971.5,2970.5,3.94910544]
[1766072855728,4.7098,2971.5,2970.5,0.58266882]
[1766072855930,0.8631891,2971.5,2969.9,0.46438023]
[1766072856125,3.1344,2971.0,2969.7,3.3673213]
[1766072856461,3.956,2970.8,2969.5,3.36753703]
[1766072856756,3.6914,2970.7,2969.5,6.73510732]
[1766072856963,0.557,2970.7,2969.6,2.07348023]
[1766072857325,3.1344,2970.6,2969.5,3.36753703]
[1766072857572,0.10157612,2972.0,2969.7,1.6091]
[1766072857834,3.9947,2971.9,2970.6,3.347704]
[1766072857992,3.1344,2972.2,2970.8,1.6091]
[1766072858138,0.8581,2972.2,2970.8,1.6091]
[1766072858477,0.46438023,2972.1,2970.9,3.36598337]
[1766072858651,3.1344,2971.9,2971.0,0.557]
[1766072858986,3.1344,2971.8,2970.6,3.36632206]
[1766072859164,0.856,2971.9,2970.1,3.36682673]
[1766072859165,0.856,2971.4,2970.1,3.36682673]
[1766072859340,0.46438023,2971.7,2970.4,3.36650697]
[1766072859544,3.9904,2971.8,2970.4,1.6091]
[1766072859794,3.1344,2971.4,2970.4,0.557]
[1766072860089,3.1344,2971.0,2969.7,3.36726684]
[1766072860375,9.09327963,2971.7,2969.8,0.557]
[1766072860376,3.1344,2970.8,2969.8,0.557]
[1766072860597,3.1344,2970.8,2969.1,4.68543193]
[1766072860598,3.1344,2970.6,2969.1,4.68543193]
[1766072860742,4.41588423,2970.5,2967.7,0.17558424]
[1766072860943,3.1344,2969.7,2967.9,2.9422]
[1766072861139,0.56595635,2970.5,2968.2,1.6091]
[1766072861140,0.46438023,2969.5,2968.2,1.6091]
[1766072861351,0.559,2969.6,2968.4,1.6091]
[1766072861553,0.405504,2969.7,2968.4,3.39733]
[1766072861756,3.1344,2970.5,2968.9,2.9422]
[1766072862049,0.559,2970.2,2969.0,4.5513]
[1766072862268,0.46438023,2970.4,2969.2,2.9422]
[1766072862581,0.39231608,2970.7,2969.6,1.5844]
[1766072862811,3.81988127,2971.7,2969.7,0.66057612]
[1766072862812,2.9468,2971.6,2969.7,0.66057612]
[1766072863104,1.01374,2971.7,2970.5,3.0528]
[1766072863383,3.41118023,2971.4,2970.4,0.559]
[1766072863751,2.9468,2971.4,2970.4,0.559]
[1766072864102,0.37976,2971.3,2970.4,0.559]
[1766072864381,0.37976,2971.3,2970.5,1.5844]
[1766072864590,1.01374,2971.7,2970.6,0.559]
[1766072864750,7.59839805,2973.1,2970.8,4.6372]
[1766072864751,0.559,2972.1,2970.8,4.6372]
[1766072864950,1.02338023,2972.1,2970.9,1.5844]
[1766072865150,0.46438023,2971.9,2970.9,1.5844]
[1766072865423,3.41118023,2971.9,2970.5,0.559]
[1766072865579,3.41118023,2971.7,2970.5,0.559]
[1766072865785,1.30888023,2971.7,2970.2,3.0528]
[1766072865946,0.46438023,2971.7,2970.4,4.6372]
[1766072866280,0.8445,2972.0,2970.5,0.559]
[1766072866582,6.31199046,2971.6,2970.5,0.559]
[1766072866776,1.09557928,2971.5,2970.5,2.1434]
[1766072866979,0.63119905,2971.5,2970.5,1.5844]
[1766072867182,0.63119905,2971.5,2970.0,4.6372]
[1766072867367,0.46438023,2971.4,2970.0,4.6372]
[1766072867550,2.9468,2971.4,2970.1,0.558]
[1766072867745,2.9468,2971.4,2969.7,0.50708012]
[1766072867746,3.41118023,2971.1,2969.4,1.5844]
[1766072867976,2.9468,2970.7,2969.6,0.558]
[1766072868456,3.41118023,2970.6,2969.4,1.5844]
[1766072868661,3.41118023,2970.6,2969.5,2.1424]
[1766072868860,3.83048472,2970.8,2969.5,5.1952]
[1766072869054,0.38304847,2970.7,2969.5,5.1952]
[1766072869262,0.46438023,2970.6,2969.5,2.1424]
[1766072869786,2.9468,2970.6,2969.5,2.1424]
[1766072869956,0.46438023,2970.6,2969.6,1.5844]
[1766072870284,0.46438023,2970.6,2969.5,0.558]
[1766072870285,2.9468,2970.5,2969.5,0.558]
[1766072870467,0.34111802,2970.4,2969.5,0.558]
[1766072871053,3.28791802,2970.4,2969.3,0.46438023]
[1766072871356,0.38304847,2970.7,2969.8,4.6372]
[1766072871567,0.46438023,2971.0,2969.8,4.6372]
[1766072872289,4.38745745,2971.7,2970.2,3.0528]
[1766072872488,4.38745745,2971.7,2970.2,4.6372]
[1766072872489,0.46438023,2971.5,2970.2,4.6372]
[1766072872989,3.41118023,2971.5,2970.2,4.6372]
[1766072873168,0.46438023,2971.3,2970.3,0.558]
[1766072873360,0.34111802,2971.2,2970.3,0.558]
[1766072873554,2.9468,2972.6,2970.7,0.405504]
[1766072873758,1.02238023,2972.2,2970.9,1.5844]
[1766072874091,0.46438023,2972.1,2970.9,1.5844]
[1766072874292,0.46358023,2972.1,2970.9,1.5844]
[1766072874597,3.36473755,2972.0,2970.9,1.5844]
[1766072874768,0.49120963,2973.3,2971.1,0.405504]
[1766072874970,3.36527814,2973.3,2971.9,3.0528]
[1766072875168,0.002,2973.3,2972.3,3.0528]
[1766072875375,0.10357612,2974.5,2972.3,3.0528]
[1766072875376,2.9488,2974.5,2972.6,3.458304]
[1766072875692,2.9488,2974.5,2973.1,1.5844]
[1766072875693,3.5078,2974.5,2973.1,1.5844]
[1766072875907,3.5078,2974.5,2973.3,1.5844]
[1766072876192,2.9488,2974.5,2973.3,4.6372]
[1766072876357,0.002,2974.5,2973.5,1.5844]
[1766072876759,0.002,2974.5,2972.9,0.405504]
[1766072876760,0.002,2974.5,2973.7,1.5844]
[1766072876963,0.002,2974.5,2973.8,4.6372]
[1766072877158,0.002,2974.5,2973.5,0.559]
[1766072877465,3.5058,2974.4,2972.9,3.0528]
[1766072877666,0.9918,2973.9,2972.1,0.46438023]
[1766072877867,3.5058,2973.8,2972.4,5.1962]
[1766072878056,0.44976,2973.7,2972.6,2.04878023]
[1766072878459,0.44976,2973.7,2972.8,8.00092861]
[1766072878688,0.46438023,2974.1,2972.8,8.55992861]
[1766072879366,3.5058,2974.2,2972.9,0.46438023]
[1766072880009,3.5058,2974.2,2972.9,2.04878023]
[1766072880186,0.46438023,2974.4,2972.9,0.46438023]
[1766072880360,0.558,2974.1,2973.1,4.6372]
[1766072880557,0.558,2974.1,2973.1,1.5844]
[1766072880854,0.39691802,2974.1,2972.8,0.559]
[1766072881080,0.558,2974.3,2973.2,4.7372]
[1766072881469,0.558,2974.3,2973.3,4.7372]
[1766072881778,0.002,2974.5,2973.4,1.6228]
[1766072881994,0.002,2974.5,2973.7,1.6228]
[1766072882287,0.46438023,2974.1,2972.7,4.7372]
[1766072882488,0.90616802,2974.0,2972.9,3.36364762]
[1766072882796,0.90616802,2974.0,2972.9,8.35023784]
[1766072883198,0.559,2974.2,2973.0,0.405504]
[1766072883493,0.559,2974.2,2973.4,1.6228]
[1766072883805,0.405504,2975.0,2973.0,0.405504]
[1766072883806,0.559,2974.4,2973.7,1.6228]
[1766072883969,0.559,2974.4,2973.3,2.08718023]
[1766072884179,0.46438023,2974.7,2973.6,1.6228]
[1766072884386,0.559,2974.4,2973.7,1.6228]
[1766072885507,0.559,2974.4,2973.6,6.47726482]
[1766072885719,0.559,2974.4,2973.6,8.10006482]
[1766072886023,0.46438023,2973.9,2972.5,3.1144]
[1766072886181,4.01087802,2973.8,2972.6,4.7372]
[1766072886375,4.01087802,2973.8,2971.4,10.96371204]
[1766072886376,3.0073,2973.4,2971.7,6.73008947]
[1766072886575,3.0073,2973.4,2971.9,1.6228]
[1766072886769,0.44457802,2973.8,2972.9,1.6228]
[1766072886971,0.46438023,2974.4,2973.3,1.6228]
[1766072887226,0.559,2974.3,2973.6,1.6228]
[1766072887508,0.002,2974.5,2972.2,0.46438023]
[1766072887509,0.559,2974.2,2972.2,0.46438023]
[1766072887679,0.559,2974.2,2972.8,2.028304]
[1766072887680,0.56,2974.2,2972.8,2.028304]
[1766072888025,0.46438023,2974.1,2972.9,0.2028304]
[1766072888309,3.0073,2973.8,2972.4,1.6228]
[1766072888512,0.56,2973.7,2972.5,2.08718023]
[1766072888815,3.92285615,2973.7,2972.5,2.08718023]
[1766072888987,1.02438023,2973.7,2972.5,4.98696058]
[1766072889188,3.0073,2973.5,2972.1,3.36454275]
[1766072889484,3.47168023,2973.4,2972.2,1.6228]
[1766072889688,0.56,2973.3,2972.4,3.36420676]
[1766072889883,0.73944333,2973.6,2971.8,3.82929601]
[1766072889884,0.56,2973.2,2972.6,3.1144]
[1766072890084,0.56,2973.2,2972.7,1.6228]
[1766072890578,0.56,2973.6,2972.8,4.7372]
[1766072890776,0.56,2973.6,2972.9,4.7372]
[1766072891019,0.46438023,2974.1,2972.9,8.10091625]
[1766072891177,0.56,2973.6,2973.0,1.6228]
[1766072891807,0.56,2973.6,2973.0,4.7372]
[1766072892326,0.56,2974.1,2973.3,1.6228]
[1766072892481,0.002,2974.2,2973.3,2.08718023]
[1766072892673,0.002,2974.2,2973.3,0.405504]
[1766072892873,0.002,2974.5,2973.7,1.6037]
[1766072893079,0.562,2974.5,2973.7,2.06808023]
[1766072893508,0.562,2974.5,2973.7,1.6037]
[1766072893914,3.1924,2975.3,2974.0,3.046]
[1766072894206,0.002,2975.3,2974.2,0.46438023]
[1766072894505,0.002,2975.3,2974.3,4.6497]
[1766072894808,0.002,2975.3,2974.4,1.6037]
[1766072894994,0.002,2975.3,2973.9,3.451504]
[1766072895200,0.002,2975.3,2974.2,2.06808023]
[1766072895201,0.31944,2975.2,2974.2,2.06808023]
[1766072895413,3.1924,2975.3,2974.0,1.37053063]
[1766072895589,3.1924,2975.3,2974.2,0.46438023]
[1766072895906,3.1924,2975.3,2974.2,8.47625802]
[1766072896110,0.002,2975.3,2974.3,2.06808023]
[1766072896497,3.1924,2975.3,2974.2,3.046]
[1766072896806,0.37544,2975.2,2974.2,3.046]
[1766072897413,0.561,2975.1,2974.2,3.046]
[1766072897720,0.561,2975.1,2973.9,1.6037]
[1766072898245,1.5514,2974.8,2973.5,1.6037]
[1766072898378,3.1904,2974.3,2972.7,3.85613609]
[1766072898578,3.1904,2974.0,2972.7,3.046]
[1766072898778,3.1904,2974.0,2972.8,0.46438023]
[1766072899018,3.1896,2974.0,2972.9,2.06808023]
[1766072899257,1.5495,2974.5,2973.2,0.46438023]
[1766072899426,1.14842087,2975.0,2973.2,0.46438023]
[1766072899427,0.56,2974.6,2973.2,0.46438023]
[1766072899586,0.56,2975.1,2973.8,2.06808023]
[1766072899792,0.56,2975.1,2974.0,1.6037]
[1766072900088,0.56,2975.1,2973.9,0.24735842]
[1766072900407,1.5477,2975.0,2973.4,0.46438023]
[1766072900590,1.5477,2974.8,2973.4,0.46438023]
[1766072900790,1.5477,2974.8,2973.3,3.046]
[1766072900977,3.65478023,2974.6,2973.3,3.046]
[1766072901177,0.56,2974.5,2973.3,8.01296557]
[1766072901377,1.47222661,2974.5,2973.3,9.15060153]
[1766072901603,0.56,2974.4,2973.6,3.046]
[1766072901774,0.56,2974.4,2973.3,1.13763596]
[1766072901978,0.56,2974.4,2973.2,3.36334507]
[1766072902203,0.56,2974.4,2973.0,3.7700754]
[1766072902204,0.56,2974.4,2973.4,4.6497]
[1766072902405,0.56,2974.4,2973.2,0.405504]
[1766072902606,3.1904,2974.3,2973.0,0.46538023]
[1766072902779,3.1904,2974.0,2973.0,0.001]
[1766072902981,7.28530272,2973.9,2973.0,0.001]
[1766072903213,3.1904,2973.7,2972.2,3.36443209]
[1766072903416,3.1904,2973.7,2971.9,1.70527612]
[1766072903417,4.7325,2973.3,2971.9,4.6497]
[1766072903624,0.46438023,2973.6,2971.8,3.36589877]
[1766072903625,1.5421,2972.7,2971.8,0.001]
[1766072903915,1.13482612,2973.2,2971.0,1.6037]
[1766072903916,3.65478023,2972.1,2971.0,1.6037]
[1766072904122,0.56,2972.0,2971.0,1.6037]
[1766072904422,3.1904,2971.9,2970.6,0.001]
[1766072904590,3.1904,2971.9,2970.7,0.46438023]
[1766072904591,3.1904,2971.8,2970.7,0.46438023]
[1766072904792,3.1904,2971.8,2970.8,0.38316708]
[1766072905122,3.1904,2971.8,2970.7,8.01589556]
[1766072905682,0.56,2971.7,2970.7,8.01589556]
[1766072905897,0.56,2971.7,2970.8,0.46438023]
[1766072906789,0.56,2971.7,2970.8,0.46437935]
[1766072907184,3.7504,2971.7,2970.6,0.001]
[1766072907707,3.7504,2971.7,2970.6,3.36723211]
[1766072907918,0.46438023,2971.6,2970.7,0.80169321]
[1766072908083,0.56,2971.7,2970.8,1.6037]
[1766072908727,3.7504,2971.7,2970.7,0.80169321]
[1766072909016,3.7504,2971.7,2970.8,0.001]
[1766072909827,0.56,2971.7,2970.8,4.6507]
[1766072909994,0.56,2971.7,2970.9,3.046]
[1766072910315,0.56,2971.7,2970.9,4.6497]
[1766072910547,0.56,2971.7,2971.0,0.46507]
[1766072911021,0.56,2971.7,2970.8,0.001]
[1766072911193,3.7504,2971.7,2970.8,0.001]
[1766072911718,3.1904,2971.6,2970.8,0.001]
[1766072912317,0.46438023,2972.0,2970.8,0.001]
[1766072912526,3.7494,2971.9,2970.8,0.001]
[1766072912816,3.1904,2971.8,2970.8,0.001]
[1766072913023,3.1904,2971.5,2970.8,0.001]
[1766072913187,3.1904,2971.2,2969.9,1.6037]
[1766072913389,1.5227,2971.3,2969.9,1.6037]
[1766072913390,3.1904,2971.0,2969.9,1.6037]
[1766072913807,3.1904,2970.9,2969.6,6.41437969]
[1766072913995,3.1904,2970.9,2969.9,0.46438023]
[1766072914197,3.1904,2970.9,2969.8,0.46438023]
[1766072914398,3.1904,2970.9,2969.9,0.38316864]
[1766072914717,3.1904,2970.9,2969.6,6.41441311]
[1766072914926,3.1904,2970.9,2969.7,0.46438023]
[1766072915220,3.1904,2970.9,2969.9,0.46438023]
[1766072915394,0.559,2970.8,2970.3,4.6497]
[1766072915597,0.559,2970.8,2970.3,5.11467]
[1766072915918,0.46438023,2971.5,2970.3,5.11467]
[1766072915919,0.559,2970.9,2970.3,5.11467]
[1766072916229,0.559,2970.9,2970.3,0.46497]
[1766072916406,0.559,2970.9,2969.9,5.11408023]
[1766072916723,0.559,2970.9,2969.9,0.46438023]
[1766072916927,0.559,2971.0,2970.2,1.6037]
[1766072917220,0.559,2971.4,2970.5,3.36643662]
[1766072917423,0.559,2972.1,2970.7,0.405504]
[1766072917638,0.559,2972.1,2970.9,4.6497]
[1766072917789,3.36444622,2972.3,2970.7,0.405504]
[1766072917790,3.1904,2973.3,2971.3,0.46438023]
[1766072917989,3.1904,2972.7,2971.2,0.46438023]
[1766072918215,3.1904,2972.4,2970.7,0.964504]
[1766072918523,0.46438023,2972.3,2970.7,0.964504]
[1766072918724,0.559,2972.6,2970.9,5.11408023]
[1766072918894,4.7961,2972.3,2971.1,4.6497]
[1766072919418,0.559,2972.6,2971.0,0.51140802]
[1766072919419,1.6057,2972.1,2971.0,0.51140802]
[1766072919621,4.7961,2972.0,2971.0,0.51140802]
[1766072919820,4.7961,2972.0,2970.8,0.46438023]
[1766072919987,4.7961,2972.0,2970.7,0.559]
[1766072920191,4.7961,2972.0,2970.7,3.92520587]
[1766072920412,4.7961,2972.0,2970.8,0.46438023]
[1766072920620,0.559,2972.1,2970.6,0.46438023]
[1766072920827,5.26048023,2971.9,2970.7,0.51140802]
[1766072921687,5.26048023,2971.9,2970.7,3.87761161]
[1766072921897,0.558,2971.9,2970.8,0.59166096]
[1766072922102,0.46438023,2972.4,2971.2,1.6037]
[1766072922408,3.8286796,2972.4,2971.3,0.46497]
[1766072922612,3.0812,2972.1,2971.3,0.46497]
[1766072922802,1.7038,2972.2,2971.1,4.6047]
[1766072923132,4.785,2972.2,2971.1,5.1627]
[1766072923606,4.7842,2972.2,2971.1,8.52844187]
[1766072923918,0.558,2972.5,2971.3,2.9528]
[1766072924122,0.558,2972.5,2971.4,1.6519]
[1766072924429,3.6392,2972.5,2971.3,1.6519]
[1766072924629,3.6392,2972.5,2971.4,0.21162802]
[1766072924934,3.6392,2972.5,2971.4,4.81632802]
[1766072925132,0.558,2972.5,2971.5,4.6047]
[1766072925562,3.0812,2972.6,2971.5,3.36527263]
[1766072925840,3.0812,2974.1,2972.6,2.9528]
[1766072926136,0.557,2974.0,2972.9,1.6519]
[1766072926446,0.557,2974.0,2973.0,4.6047]
[1766072926600,1.02138023,2974.0,2973.0,4.6047]
[1766072926800,0.557,2974.0,2973.0,4.6047]
[1766072926999,0.557,2974.0,2973.1,0.405504]
[1766072927245,0.002,2974.3,2973.4,4.6047]
[1766072927544,0.002,2974.3,2973.0,2.057404]
[1766072927718,1.7038,2974.1,2973.1,0.46438023]
[1766072928060,4.785,2974.1,2973.1,0.46438023]
[1766072928243,1.7038,2974.1,2972.9,0.46438023]
[1766072928429,0.557,2974.2,2973.3,4.6047]
[1766072928631,0.557,2974.2,2973.3,7.96793367]
[1766072928968,0.557,2974.2,2973.3,4.6047]
[1766072929324,0.557,2974.2,2973.1,0.46438023]
[1766072929530,3.0812,2973.9,2972.1,3.36454477]
[1766072929856,0.97146035,2974.1,2972.2,4.94115448]
[1766072930017,3.0812,2973.5,2972.2,4.6047]
[1766072930216,0.557,2973.4,2972.4,4.6047]
[1766072930417,3.0812,2974.0,2972.6,0.405504]
[1766072930617,0.557,2973.9,2972.9,1.6519]
[1766072930839,4.785,2973.8,2972.7,3.36392377]
[1766072931160,5.3192,2973.8,2972.7,0.46438023]
[1766072931865,0.5342,2973.8,2972.8,0.405504]
[1766072932025,0.002,2974.3,2973.0,2.52178423]
[1766072932230,1.7038,2974.9,2973.8,1.6519]
[1766072932426,0.557,2974.5,2973.1,0.405504]
[1766072932643,0.557,2974.5,2973.5,0.46438023]
[1766072933463,1.0912,2974.5,2973.5,0.46438023]
[1766072933630,0.002,2974.2,2973.5,0.46438023]
[1766072934021,0.557,2974.5,2973.5,3.36301476]
[1766072934256,0.557,2974.5,2973.6,4.6047]
[1766072935222,5.342,2974.5,2973.3,0.405504]
[1766072935418,0.87038117,2974.4,2973.2,0.46438023]
[1766072935622,0.87038117,2974.4,2972.8,0.557]
[1766072935623,1.7038,2974.2,2972.8,0.46438023]
[1766072935850,4.785,2974.1,2972.9,0.405504]
[1766072936058,0.557,2974.0,2972.9,0.46438023]
[1766072936262,0.557,2974.0,2972.8,4.6047]
[1766072936263,1.7038,2973.9,2972.4,4.6047]
[1766072936562,0.22608,2973.8,2972.8,4.6047]
[1766072936734,0.557,2974.0,2972.8,4.6047]
[1766072936942,0.557,2974.0,2972.6,0.46438023]
[1766072937181,0.557,2974.0,2972.8,2.9528]
[1766072937344,0.557,2974.0,2972.7,3.36394523]
[1766072937662,0.557,2974.0,2972.8,4.6047]
[1766072937869,0.5342,2973.9,2972.8,4.6047]
[1766072939173,0.557,2974.0,2972.8,2.9528]
[1766072939332,5.342,2974.0,2972.8,4.6047]
[1766072939742,3.9195258,2974.0,2972.8,4.6047]
[1766072939963,3.9195258,2974.0,2972.6,0.405504]
[1766072940126,3.0812,2973.9,2972.6,0.405504]
[1766072940332,2.06762,2973.8,2972.8,0.46438023]
[1766072940947,2.06762,2973.8,2972.7,0.46438023]
[1766072941269,1.6787,2973.7,2972.7,0.46438023]
[1766072941432,1.6787,2973.7,2972.7,8.63576751]
[1766072941634,0.002,2974.0,2972.8,0.405504]
[1766072941831,0.557,2973.9,2973.1,3.1529]
[1766072942134,0.557,2974.2,2973.3,3.1529]
[1766072942368,0.557,2974.1,2973.3,4.8075]
[1766072942537,0.557,2974.1,2973.3,3.1529]
[1766072943081,0.557,2974.3,2973.6,4.8075]
[1766072943230,0.557,2974.3,2973.3,0.36172802]
[1766072943433,0.557,2974.3,2973.3,3.3632664]
[1766072943829,0.557,2974.6,2973.9,3.1529]
[1766072944689,0.002,2975.0,2974.0,0.46438023]
[1766072944990,0.557,2974.9,2974.4,3.1529]
[1766072945158,1.6787,2976.0,2974.6,3.1529]
[1766072945343,1.6787,2976.0,2974.7,0.405504]
[1766072945544,0.557,2975.9,2975.0,3.1529]
[1766072946100,1.02138023,2975.9,2974.3,4.8075]
[1766072946251,4.646,2975.3,2974.0,9.03985544]
[1766072946586,0.557,2975.2,2973.4,3.36313623]
[1766072946790,4.646,2975.0,2973.4,0.67264987]
[1766072946951,4.646,2975.0,2973.3,1.6546]
[1766072946952,0.46438023,2975.0,2973.3,1.6546]
[1766072947151,0.46438023,2975.0,2973.5,4.8075]
[1766072947351,4.646,2974.7,2973.5,4.8075]
[1766072947587,5.203,2974.6,2973.5,4.8075]
[1766072948464,5.2022,2974.6,2973.5,4.8075]
[1766072948787,0.002,2974.6,2973.8,3.1529]
[1766072949089,0.559,2974.6,2974.0,4.8075]
[1766072949251,4.646,2974.5,2973.5,0.405504]
[1766072949883,0.559,2974.6,2973.5,0.405504]
[1766072950187,0.559,2974.6,2973.6,4.8075]
[1766072950484,2.9673,2974.2,2973.0,3.36454338]
[1766072950688,0.557,2974.1,2973.0,0.001]
[1766072950873,0.557,2974.1,2973.1,0.46438023]
[1766072951054,0.557,2974.1,2973.2,0.36182802]
[1766072951787,2.9673,2973.8,2973.0,0.001]
[1766072951993,0.46438023,2974.0,2973.0,0.001]
[1766072952212,0.46438023,2973.8,2971.9,1.6556]
[1766072952493,1.5856,2972.8,2971.9,0.001]
[1766072952651,0.556,2972.7,2971.9,0.001]
[1766072952856,1.5856,2973.7,2972.1,3.0599]
[1766072953058,1.5856,2973.7,2972.2,0.46949]
[1766072953059,3.24307612,2973.4,2972.2,0.46949]
[1766072953277,3.1415,2972.8,2971.9,0.001]
[1766072953480,4.7271,2972.6,2971.9,0.001]
[1766072954685,3.1415,2972.3,2971.4,0.21162802]
[1766072954889,0.557,2972.2,2971.4,0.21162802]
[1766072955258,5.2841,2972.2,2971.2,0.46438023]
[1766072955524,5.2841,2972.2,2970.7,3.36712914]
[1766072955525,0.557,2972.2,2970.7,0.001]
[1766072955796,4.7271,2971.6,2970.7,0.001]
[1766072956005,0.557,2971.5,2970.7,0.001]
[1766072956158,4.7271,2971.6,2970.7,0.001]
[1766072956358,3.36464999,2972.1,2970.7,3.0609]
[1766072956359,0.557,2971.5,2970.7,3.0609]
[1766072956665,0.557,2971.4,2970.8,0.30609]
[1766072956989,0.86988423,2972.7,2970.8,0.30609]
[1766072957194,0.46438023,2972.3,2971.1,0.405504]
[1766072957496,0.46438023,2972.2,2971.1,0.405504]
[1766072957662,0.557,2972.6,2971.0,6.42569171]
[1766072957663,5.74848023,2972.1,2971.0,6.42569171]
[1766072957859,0.557,2972.1,2971.4,3.0599]
[1766072958125,0.557,2972.1,2971.4,4.6949]
[1766072958400,1.5856,2972.0,2970.8,3.0599]
[1766072958556,4.7271,2971.9,2970.9,0.46438023]
[1766072958902,0.46438023,2972.6,2970.0,1.635]
[1766072958903,1.02138023,2971.8,2970.0,1.635]
[1766072959102,0.557,2971.7,2970.0,8.0618834]
[1766072959421,4.7271,2971.3,2970.1,0.80628834]
[1766072959625,0.46438023,2972.0,2970.1,0.80628834]
[1766072959626,3.92264916,2971.2,2970.1,0.80628834]
[1766072959919,3.1415,2971.0,2969.9,0.001]
[1766072960108,2.04998023,2970.8,2969.9,0.001]
[1766072960311,3.1415,2970.5,2969.9,0.001]
[1766072960629,1.5856,2970.4,2969.6,0.03467456]
[1766072960927,1.5856,2970.6,2969.6,0.001]
[1766072961091,0.557,2970.5,2969.6,0.30719]
[1766072961288,5.2841,2970.5,2969.6,0.30719]
[1766072962326,3.9234501,2970.5,2969.6,0.30719]
[1766072962527,3.1415,2970.0,2969.0,0.001]
[1766072962731,5.2841,2969.9,2969.0,0.001]
[1766072962905,0.557,2969.9,2969.0,0.001]
[1766072963100,0.557,2969.9,2969.1,0.30609]
[1766072963321,4.7271,2971.0,2969.6,3.36739374]
[1766072963629,0.10157612,2971.9,2969.6,3.36739374]
[1766072963630,0.557,2970.9,2970.0,6.42679206]
[1766072963832,0.557,2970.9,2970.0,3.0599]
[1766072964036,0.557,2970.9,2970.0,6.42689911]
[1766072964187,0.557,2970.9,2970.1,0.68324031]
[1766072964521,1.5856,2971.1,2970.1,0.68324031]
[1766072964522,1.5856,2971.7,2970.5,3.0599]
[1766072964827,2.1426,2971.6,2970.5,3.0599]
[1766072965030,0.557,2971.6,2970.1,1.14762054]
[1766072965329,0.557,2971.6,2970.7,0.46438023]
[1766072965493,0.557,2971.6,2970.8,0.39297842]
[1766072965694,1.5856,2972.0,2970.8,0.39297842]
[1766072965695,0.557,2971.8,2970.9,3.36598337]
[1766072966027,0.557,2971.8,2970.9,6.42588337]
[1766072966351,0.557,2971.8,2971.0,0.46438023]
[1766072966627,0.002,2972.5,2971.5,3.0599]
[1766072966938,4.7271,2972.2,2971.6,0.46949]
[1766072967140,1.5856,2971.9,2971.2,0.46438023]
[1766072967648,0.557,2972.1,2971.2,0.46438023]
[1766072967811,1.5856,2972.3,2971.3,3.36553023]
[1766072968011,0.557,2972.2,2971.4,0.38299105]
[1766072969344,0.002,2972.5,2971.6,3.0599]
[1766072969823,0.002,2972.5,2971.8,3.0599]
[1766072970342,0.002,2972.5,2971.7,6.73015444]
[1766072970753,3.1435,2973.7,2972.1,1.635]
[1766072970938,3.1435,2973.7,2972.0,8.62052662]
[1766072970939,0.557,2973.6,2972.2,1.02555266]